[Event "Titled Tuesday Blitz April 05 Late 2022"]
[White "Kozin, Yuri"]
[Black "Kujawski, Adam"]
[WhiteFideId "4129920"]
[BlackFideId "1100920"]
[WhiteElo "2532"]
[BlackElo "2338"]
[Result "0-1"]
[Round "06"]
[TimeControl "180+1"]
[Date "2022.04.06"]
[WhiteClock "0:00:39"]
[BlackClock "0:00:20"]

1. e4 {[%clk 0:03:00]}  e5 {[%clk 0:03:00]} 2. Nf3 {[%clk 0:03:00]}  Nc6 {[%clk 0:03:00]} 3. Bb5 {[%clk 0:03:01]}  a6 {[%clk 0:03:00]} 4. Ba4 {[%clk 0:03:01]}  Nf6 {[%clk 0:03:00]} 5. O-O {[%clk 0:03:01]}  Be7 {[%clk 0:03:00]} 6. Re1 {[%clk 0:03:02]}  b5 {[%clk 0:03:00]} 7. Bb3 {[%clk 0:03:02]}  d6 {[%clk 0:03:01]} 8. c3 {[%clk 0:03:02]}  O-O {[%clk 0:03:00]} 9. h3 {[%clk 0:03:02]}  Nb8 {[%clk 0:02:59]} 10. a4 {[%clk 0:02:56]}  Bb7 {[%clk 0:02:57]} 11. d3 {[%clk 0:02:55]}  Nbd7 {[%clk 0:02:56]} 12. Na3 {[%clk 0:02:53]}  Nc5 {[%clk 0:02:54]} 13. Bc2 {[%clk 0:02:49]}  Ne6 {[%clk 0:02:50]} 14. Bd2 {[%clk 0:02:47]}  Qd7 {[%clk 0:02:44]} 15. d4 {[%clk 0:02:42]}  exd4 {[%clk 0:02:35]} 16. cxd4 {[%clk 0:02:42]}  c5 {[%clk 0:02:25]} 17. d5 {[%clk 0:02:39]}  Nc7 {[%clk 0:02:13]} 18. b4 {[%clk 0:02:25]}  cxb4 {[%clk 0:01:42]} 19. Bxb4 {[%clk 0:02:21]}  a5 {[%clk 0:01:42]} 20. Bd2 {[%clk 0:02:15]}  b4 {[%clk 0:01:27]} 21. Nc4 {[%clk 0:02:13]}  Qd8 {[%clk 0:01:11]} 22. Bd3 {[%clk 0:02:08]}  Na6 {[%clk 0:01:07]} 23. Be3 {[%clk 0:02:05]}  Nd7 {[%clk 0:01:04]} 24. Rc1 {[%clk 0:01:58]}  Nac5 {[%clk 0:00:55]} 25. Bd4 {[%clk 0:01:36]}  Re8 {[%clk 0:00:54]} 26. Bf1 {[%clk 0:01:29]}  Bf8 {[%clk 0:00:53]} 27. e5 {[%clk 0:01:22]}  dxe5 {[%clk 0:00:52]} 28. Ncxe5 {[%clk 0:01:19]}  Nxe5 {[%clk 0:00:51]} 29. Nxe5 {[%clk 0:01:11]}  Qxd5 {[%clk 0:00:47]} 30. f3 {[%clk 0:00:49]}  Nb3 {[%clk 0:00:37]} 31. Bc4 {[%clk 0:00:46]}  Qxd4+ {[%clk 0:00:37]} 32. Qxd4 {[%clk 0:00:44]}  Nxd4 {[%clk 0:00:37]} 33. Bxf7+ {[%clk 0:00:43]}  Kh8 {[%clk 0:00:38]} 34. Bxe8 {[%clk 0:00:44]}  Rxe8 {[%clk 0:00:20]} 35. Nf7+ {[%clk 0:00:43]}  Kg8 {[%clk 0:00:21]} 36. Rxe8 {[%clk 0:00:44]}  Kxf7 {[%clk 0:00:21]} 37. Rd8 {[%clk 0:00:43]}  Ne2+ {[%clk 0:00:21]} 38. Kf2 {[%clk 0:00:42]}  Nxc1 {[%clk 0:00:21]} 39. Rd7+ {[%clk 0:00:42]}  Ke6 {[%clk 0:00:21]} 40. Rxb7 {[%clk 0:00:43]}  b3 {[%clk 0:00:21]} 41. Ke3 {[%clk 0:00:43]}  Bb4 {[%clk 0:00:20]} 42. Rb6+ {[%clk 0:00:39]}  Kd5 {[%clk 0:00:20]} 0-1


[Site "https://www.chess.com"]

[Event "Titled Tuesday Blitz April 05 Late 2022"]
[White "Le Goff, Ronan"]
[Black "VengoDelFuturo"]
[WhiteFideId "612073"]
[WhiteElo "2276"]
[BlackElo "2354"]
[Result "0-1"]
[Round "06"]
[TimeControl "180+1"]
[Date "2022.04.06"]
[WhiteClock "0:01:06"]
[BlackClock "0:00:26"]

1. Nf3 {[%clk 0:03:00]}  Nf6 {[%clk 0:02:57]} 2. d4 {[%clk 0:03:00]}  e6 {[%clk 0:02:57]} 3. Bf4 {[%clk 0:02:59]}  d5 {[%clk 0:02:51]} 4. e3 {[%clk 0:02:57]}  Bd6 {[%clk 0:02:51]} 5. Bg3 {[%clk 0:02:49]}  O-O {[%clk 0:02:35]} 6. Nbd2 {[%clk 0:02:46]}  b6 {[%clk 0:02:31]} 7. Bd3 {[%clk 0:02:35]}  c5 {[%clk 0:02:24]} 8. c3 {[%clk 0:02:33]}  Ba6 {[%clk 0:02:23]} 9. Bc2 {[%clk 0:02:33]}  Nc6 {[%clk 0:02:18]} 10. a3 {[%clk 0:02:23]}  Rc8 {[%clk 0:02:12]} 11. Ne5 {[%clk 0:02:22]}  Bxe5 {[%clk 0:01:53]} 12. dxe5 {[%clk 0:02:18]}  Nd7 {[%clk 0:01:53]} 13. Bxh7+ {[%clk 0:02:13]}  Kxh7 {[%clk 0:01:48]} 14. Qh5+ {[%clk 0:02:13]}  Kg8 {[%clk 0:01:47]} 15. Nf3 {[%clk 0:02:14]}  f6 {[%clk 0:01:41]} 16. O-O-O {[%clk 0:02:10]}  Be2 {[%clk 0:01:30]} 17. Rd2 {[%clk 0:02:04]}  Bxf3 {[%clk 0:01:29]} 18. gxf3 {[%clk 0:02:04]}  Ndxe5 {[%clk 0:01:24]} 19. Bxe5 {[%clk 0:02:02]}  fxe5 {[%clk 0:01:20]} 20. Rg1 {[%clk 0:02:01]}  Qf6 {[%clk 0:01:20]} 21. Rg3 {[%clk 0:01:59]}  d4 {[%clk 0:01:06]} 22. Rd1 {[%clk 0:01:58]}  dxc3 {[%clk 0:01:03]} 23. Rdg1 {[%clk 0:01:56]}  cxb2+ {[%clk 0:01:01]} 24. Kb1 {[%clk 0:01:55]}  Rc7 {[%clk 0:00:59]} 25. e4 {[%clk 0:01:52]}  c4 {[%clk 0:00:53]} 26. Rg6 {[%clk 0:01:48]}  Qxf3 {[%clk 0:00:41]} 27. Qh4 {[%clk 0:01:16]}  c3 {[%clk 0:00:26]} 28. Rxg7+ {[%clk 0:01:06]}  Rxg7 {[%clk 0:00:25]} 29. Rxg7+ {[%clk 0:01:06]}  Kxg7 {[%clk 0:00:26]} 30. Qg5+ {[%clk 0:01:06]}  Kf7 {[%clk 0:00:26]} 0-1


[Site "https://www.chess.com"]

[Event "Titled Tuesday Blitz April 05 Late 2022"]
[White "Leiva, Gianmarco"]
[Black "Romanchuk, Viktor"]
[WhiteFideId "3804399"]
[BlackFideId "14109271"]
[WhiteElo "2323"]
[BlackElo "2242"]
[Result "1/2-1/2"]
[Round "06"]
[TimeControl "180+1"]
[Date "2022.04.05"]
[WhiteClock "0:00:04"]
[BlackClock "0:00:18"]

1. e4 {[%clk 0:03:00]}  e6 {[%clk 0:02:59]} 2. Qe2 {[%clk 0:03:00]}  c5 {[%clk 0:02:58]} 3. g3 {[%clk 0:03:00]}  Nc6 {[%clk 0:02:58]} 4. Bg2 {[%clk 0:03:01]}  g6 {[%clk 0:02:58]} 5. Nf3 {[%clk 0:03:02]}  Bg7 {[%clk 0:02:59]} 6. Nc3 {[%clk 0:02:45]}  Nge7 {[%clk 0:02:54]} 7. e5 {[%clk 0:02:44]}  O-O {[%clk 0:02:40]} 8. d3 {[%clk 0:02:44]}  b6 {[%clk 0:02:06]} 9. Ne4 {[%clk 0:02:42]}  Nxe5 {[%clk 0:02:01]} 10. Nxe5 {[%clk 0:02:41]}  Bxe5 {[%clk 0:02:01]} 11. Bh6 {[%clk 0:02:25]}  Bg7 {[%clk 0:01:48]} 12. Bxg7 {[%clk 0:01:00]}  Kxg7 {[%clk 0:01:49]} 13. Nd6 {[%clk 0:00:22]}  Nc6 {[%clk 0:01:17]} 14. h4 {[%clk 0:00:09]}  h5 {[%clk 0:01:06]} 15. g4 {[%clk 0:00:06]}  Rh8 {[%clk 0:00:56]} 16. g5 {[%clk 0:00:04]}  f6 {[%clk 0:00:50]} 17. gxf6+ {[%clk 0:00:02]}  Qxf6 {[%clk 0:00:50]} 18. O-O-O {[%clk 0:00:03]}  Ba6 {[%clk 0:00:29]} 19. Bxc6 {[%clk 0:00:03]}  dxc6 {[%clk 0:00:29]} 20. Ne4 {[%clk 0:00:04]}  Qe5 {[%clk 0:00:28]} 21. Kb1 {[%clk 0:00:03]}  Rhf8 {[%clk 0:00:27]} 22. Rhg1 {[%clk 0:00:03]}  c4 {[%clk 0:00:24]} 23. dxc4 {[%clk 0:00:03]}  Rad8 {[%clk 0:00:22]} 24. Rxd8 {[%clk 0:00:02]}  Rxd8 {[%clk 0:00:22]} 25. b3 {[%clk 0:00:02]}  c5 {[%clk 0:00:21]} 26. f3 {[%clk 0:00:02]}  Bb7 {[%clk 0:00:20]} 27. Re1 {[%clk 0:00:03]}  Bxe4 {[%clk 0:00:20]} 28. Qxe4 {[%clk 0:00:03]}  Qxe4 {[%clk 0:00:19]} 29. Rxe4 {[%clk 0:00:03]}  Kf6 {[%clk 0:00:19]} 30. Rf4+ {[%clk 0:00:04]}  Kg7 {[%clk 0:00:18]} 31. Re4 {[%clk 0:00:05]}  Kf6 {[%clk 0:00:18]} 32. Rf4+ {[%clk 0:00:05]}  Ke7 {[%clk 0:00:18]} 33. Kc1 {[%clk 0:00:05]}  Rf8 {[%clk 0:00:17]} 34. Rxf8 {[%clk 0:00:05]}  Kxf8 {[%clk 0:00:17]} 35. Kd2 {[%clk 0:00:05]}  Kf7 {[%clk 0:00:18]} 36. Ke3 {[%clk 0:00:06]}  Kf6 {[%clk 0:00:18]} 37. Kf4 {[%clk 0:00:07]}  e5+ {[%clk 0:00:18]} 38. Ke4 {[%clk 0:00:07]}  Ke6 {[%clk 0:00:18]} 39. f4 {[%clk 0:00:06]}  exf4 {[%clk 0:00:18]} 40. Kxf4 {[%clk 0:00:07]}  Kf6 {[%clk 0:00:19]} 41. c3 {[%clk 0:00:07]}  a5 {[%clk 0:00:18]} 42. a3 {[%clk 0:00:07]}  g5+ {[%clk 0:00:14]} 43. hxg5+ {[%clk 0:00:08]}  Kg6 {[%clk 0:00:15]} 44. b4 {[%clk 0:00:05]}  a4 {[%clk 0:00:15]} 45. b5 {[%clk 0:00:05]}  h4 {[%clk 0:00:15]} 46. Kg4 {[%clk 0:00:05]}  h3 {[%clk 0:00:16]} 47. Kxh3 {[%clk 0:00:06]}  Kxg5 {[%clk 0:00:16]} 48. Kg3 {[%clk 0:00:06]}  Kf5 {[%clk 0:00:17]} 49. Kf3 {[%clk 0:00:07]}  Ke5 {[%clk 0:00:17]} 50. Ke3 {[%clk 0:00:08]}  Kf5 {[%clk 0:00:17]} 51. Kf3 {[%clk 0:00:08]}  Ke5 {[%clk 0:00:18]} 52. Ke3 {[%clk 0:00:08]}  Kf5 {[%clk 0:00:18]} 53. Kf3 {[%clk 0:00:04]} 1/2-1/2


[Site "https://www.chess.com"]

[Event "Titled Tuesday Blitz April 05 Late 2022"]
[White "Martinez Alcantara, Jose Eduardo"]
[Black "Murzin, Volodar"]
[WhiteFideId "3805662"]
[BlackFideId "44155573"]
[WhiteElo "2690"]
[BlackElo "2585"]
[Result "0-1"]
[Round "06"]
[TimeControl "180+1"]
[Date "2022.04.05"]
[WhiteClock "0:00:05"]
[BlackClock "0:00:04"]

1. e4 {[%clk 0:02:58]}  c6 {[%clk 0:03:00]} 2. d4 {[%clk 0:02:55]}  d5 {[%clk 0:03:01]} 3. e5 {[%clk 0:02:56]}  Bf5 {[%clk 0:03:01]} 4. h4 {[%clk 0:02:57]}  h5 {[%clk 0:03:01]} 5. Bd3 {[%clk 0:02:58]}  Bxd3 {[%clk 0:03:01]} 6. Qxd3 {[%clk 0:02:59]}  Qa5+ {[%clk 0:03:01]} 7. b4 {[%clk 0:03:00]}  Qa6 {[%clk 0:02:58]} 8. e6 {[%clk 0:03:00]}  Qxd3 {[%clk 0:02:55]} 9. cxd3 {[%clk 0:03:00]}  Na6 {[%clk 0:02:55]} 10. Bd2 {[%clk 0:02:41]}  f6 {[%clk 0:02:50]} 11. Nh3 {[%clk 0:02:36]}  Nc7 {[%clk 0:02:46]} 12. Nf4 {[%clk 0:02:32]}  Nh6 {[%clk 0:02:47]} 13. Nc3 {[%clk 0:02:21]}  Nf5 {[%clk 0:02:46]} 14. Nce2 {[%clk 0:02:21]}  Rd8 {[%clk 0:02:33]} 15. a4 {[%clk 0:01:49]}  Rg8 {[%clk 0:01:55]} 16. Rc1 {[%clk 0:01:29]}  Rd6 {[%clk 0:01:34]} 17. Nxh5 {[%clk 0:01:01]}  Nxe6 {[%clk 0:01:30]} 18. Be3 {[%clk 0:00:50]}  Rh8 {[%clk 0:01:26]} 19. g4 {[%clk 0:00:48]}  Nxe3 {[%clk 0:01:15]} 20. fxe3 {[%clk 0:00:49]}  Rd7 {[%clk 0:00:55]} 21. Nhg3 {[%clk 0:00:43]}  Nc7 {[%clk 0:00:46]} 22. h5 {[%clk 0:00:41]}  e6 {[%clk 0:00:46]} 23. Rb1 {[%clk 0:00:41]}  Bd6 {[%clk 0:00:42]} 24. Kf2 {[%clk 0:00:41]}  Kf7 {[%clk 0:00:39]} 25. Nf4 {[%clk 0:00:39]}  Rc8 {[%clk 0:00:26]} 26. Kg2 {[%clk 0:00:33]}  Na6 {[%clk 0:00:24]} 27. h6 {[%clk 0:00:29]}  g5 {[%clk 0:00:24]} 28. Nfh5 {[%clk 0:00:29]}  Kg6 {[%clk 0:00:21]} 29. Rbf1 {[%clk 0:00:28]}  Rf7 {[%clk 0:00:21]} 30. e4 {[%clk 0:00:26]}  Bxg3 {[%clk 0:00:17]} 31. Kxg3 {[%clk 0:00:26]}  Nxb4 {[%clk 0:00:17]} 32. e5 {[%clk 0:00:20]}  fxe5 {[%clk 0:00:17]} 33. Rxf7 {[%clk 0:00:18]}  Kxf7 {[%clk 0:00:18]} 34. Rf1+ {[%clk 0:00:18]}  Kg6 {[%clk 0:00:15]} 35. Rf6+ {[%clk 0:00:17]}  Kh7 {[%clk 0:00:16]} 36. dxe5 {[%clk 0:00:16]}  Nxd3 {[%clk 0:00:15]} 37. Rxe6 {[%clk 0:00:16]}  c5 {[%clk 0:00:12]} 38. Nf6+ {[%clk 0:00:15]}  Kxh6 {[%clk 0:00:12]} 39. Nxd5+ {[%clk 0:00:16]}  Kg7 {[%clk 0:00:12]} 40. Ne3 {[%clk 0:00:12]}  Rc6 {[%clk 0:00:07]} 41. Nf5+ {[%clk 0:00:10]}  Kf8 {[%clk 0:00:08]} 42. Re7 {[%clk 0:00:09]}  c4 {[%clk 0:00:05]} 43. e6 {[%clk 0:00:08]}  Ne5 {[%clk 0:00:04]} 44. Rxb7 {[%clk 0:00:08]}  Rxe6 {[%clk 0:00:04]} 45. Rc7 {[%clk 0:00:08]}  Rc6 {[%clk 0:00:04]} 46. Re7 {[%clk 0:00:09]}  c3 {[%clk 0:00:03]} 47. Rxe5 {[%clk 0:00:05]}  c2 {[%clk 0:00:04]} 48. Re1 {[%clk 0:00:02]}  c1=Q {[%clk 0:00:04]} 49. Rxc1 {[%clk 0:00:03]}  Rxc1 {[%clk 0:00:04]} 50. Nd4 {[%clk 0:00:02]}  Kf7 {[%clk 0:00:03]} 51. Nf3 {[%clk 0:00:01]}  Kf6 {[%clk 0:00:02]} 52. Nd2 {[%clk 0:00:02]}  Ra1 {[%clk 0:00:02]} 53. Ne4+ {[%clk 0:00:03]}  Kg6 {[%clk 0:00:03]} 54. Nc5 {[%clk 0:00:04]}  Ra3+ {[%clk 0:00:03]} 55. Kf2 {[%clk 0:00:04]}  Rc3 {[%clk 0:00:03]} 56. Ne6 {[%clk 0:00:01]}  Rc4 {[%clk 0:00:03]} 57. a5 {[%clk 0:00:02]}  Rxg4 {[%clk 0:00:03]} 58. Nc7 {[%clk 0:00:02]}  Ra4 {[%clk 0:00:03]} 59. Ke3 {[%clk 0:00:03]}  Rxa5 {[%clk 0:00:03]} 60. Ke4 {[%clk 0:00:02]}  Rf5 {[%clk 0:00:03]} 61. Ne8 {[%clk 0:00:02]}  a5 {[%clk 0:00:03]} 62. Nd6 {[%clk 0:00:03]}  Rf4+ {[%clk 0:00:03]} 63. Ke3 {[%clk 0:00:04]}  a4 {[%clk 0:00:04]} 64. Nb5 {[%clk 0:00:04]}  Rb4 {[%clk 0:00:04]} 65. Ke2 {[%clk 0:00:05]}  Rxb5 {[%clk 0:00:04]} 0-1


[Site "https://www.chess.com"]

[Event "Titled Tuesday Blitz April 05 Late 2022"]
[White "Mikhnenko, Alexander"]
[Black "Hasangatin, Ramil"]
[WhiteFideId "34143014"]
[BlackFideId "4122160"]
[WhiteElo "2398"]
[BlackElo "2645"]
[Result "0-1"]
[Round "06"]
[TimeControl "180+1"]
[Date "2022.04.06"]
[WhiteClock "0:00:05"]
[BlackClock "0:00:17"]

1. e4 {[%clk 0:03:00]}  c5 {[%clk 0:02:58]} 2. Nf3 {[%clk 0:02:59]}  Nc6 {[%clk 0:02:59]} 3. Bb5 {[%clk 0:02:59]}  Na5 {[%clk 0:02:58]} 4. O-O {[%clk 0:02:55]}  a6 {[%clk 0:02:58]} 5. Be2 {[%clk 0:02:55]}  e6 {[%clk 0:02:59]} 6. c3 {[%clk 0:02:52]}  Nf6 {[%clk 0:02:59]} 7. Qc2 {[%clk 0:02:51]}  b5 {[%clk 0:02:57]} 8. d4 {[%clk 0:02:48]}  Bb7 {[%clk 0:02:57]} 9. Nbd2 {[%clk 0:02:48]}  cxd4 {[%clk 0:02:51]} 10. cxd4 {[%clk 0:02:46]}  Rc8 {[%clk 0:02:51]} 11. Qb1 {[%clk 0:02:45]}  d5 {[%clk 0:02:50]} 12. e5 {[%clk 0:02:43]}  Ne4 {[%clk 0:02:51]} 13. Bd3 {[%clk 0:02:37]}  Nxd2 {[%clk 0:02:40]} 14. Bxd2 {[%clk 0:02:38]}  Nc4 {[%clk 0:02:41]} 15. Bf4 {[%clk 0:02:24]}  h6 {[%clk 0:02:35]} 16. h4 {[%clk 0:02:19]}  Be7 {[%clk 0:02:33]} 17. h5 {[%clk 0:02:19]}  Bg5 {[%clk 0:02:29]} 18. Bxg5 {[%clk 0:02:06]}  hxg5 {[%clk 0:02:30]} 19. g4 {[%clk 0:02:06]}  f6 {[%clk 0:02:07]} 20. b3 {[%clk 0:01:56]}  Na3 {[%clk 0:02:03]} 21. Qb2 {[%clk 0:01:54]}  b4 {[%clk 0:02:02]} 22. Qe2 {[%clk 0:01:39]}  Rc3 {[%clk 0:01:59]} 23. Bg6+ {[%clk 0:01:32]}  Kd7 {[%clk 0:01:54]} 24. Rfe1 {[%clk 0:01:11]}  Qb6 {[%clk 0:01:52]} 25. exf6 {[%clk 0:00:51]}  gxf6 {[%clk 0:01:51]} 26. Bf7 {[%clk 0:00:52]}  Rc6 {[%clk 0:01:50]} 27. Rac1 {[%clk 0:00:45]}  Rd6 {[%clk 0:01:43]} 28. Qd3 {[%clk 0:00:34]}  Nb5 {[%clk 0:01:23]} 29. Qg6 {[%clk 0:00:24]}  Nxd4 {[%clk 0:01:22]} 30. Nxd4 {[%clk 0:00:24]}  Qxd4 {[%clk 0:01:22]} 31. Qg7 {[%clk 0:00:24]}  Qxg4+ {[%clk 0:01:21]} 32. Kf1 {[%clk 0:00:22]}  Qh3+ {[%clk 0:01:09]} 33. Ke2 {[%clk 0:00:22]}  Rc6 {[%clk 0:00:57]} 34. Qxh8 {[%clk 0:00:13]}  Qg4+ {[%clk 0:00:47]} 35. Kf1 {[%clk 0:00:13]}  Qh3+ {[%clk 0:00:47]} 36. Kg1 {[%clk 0:00:13]}  Qg4+ {[%clk 0:00:27]} 37. Kf1 {[%clk 0:00:13]}  Qh3+ {[%clk 0:00:28]} 38. Ke2 {[%clk 0:00:12]}  Qg4+ {[%clk 0:00:28]} 39. f3 {[%clk 0:00:08]}  Qg2+ {[%clk 0:00:26]} 40. Ke3 {[%clk 0:00:08]}  d4+ {[%clk 0:00:26]} 41. Kxd4 {[%clk 0:00:05]}  Qd2+ {[%clk 0:00:18]} 42. Ke4 {[%clk 0:00:05]}  Rc4# {[%clk 0:00:17]} 0-1


[Site "https://www.chess.com"]

[Event "Titled Tuesday Blitz April 05 Late 2022"]
[White "Nasuta, Grzegorz"]
[Black "Pesotskiy, Mikhail"]
[WhiteFideId "1141686"]
[BlackFideId "34164453"]
[WhiteElo "2629"]
[BlackElo "2465"]
[Result "1-0"]
[Round "06"]
[TimeControl "180+1"]
[Date "2022.04.06"]
[WhiteClock "0:00:56"]
[BlackClock "0:00:03"]

1. b3 {[%clk 0:02:58]}  Nf6 {[%clk 0:02:58]} 2. Bb2 {[%clk 0:02:58]}  g6 {[%clk 0:02:53]} 3. e4 {[%clk 0:02:38]}  Bg7 {[%clk 0:02:48]} 4. e5 {[%clk 0:02:38]}  Nd5 {[%clk 0:02:48]} 5. c4 {[%clk 0:02:39]}  Nb6 {[%clk 0:02:49]} 6. Nf3 {[%clk 0:02:39]}  d6 {[%clk 0:02:46]} 7. d4 {[%clk 0:02:34]}  Nc6 {[%clk 0:02:43]} 8. exd6 {[%clk 0:02:30]}  cxd6 {[%clk 0:02:43]} 9. Be2 {[%clk 0:02:28]}  O-O {[%clk 0:02:43]} 10. O-O {[%clk 0:02:29]}  a5 {[%clk 0:02:37]} 11. Nc3 {[%clk 0:02:23]}  a4 {[%clk 0:02:38]} 12. Rb1 {[%clk 0:02:01]}  Bf5 {[%clk 0:02:26]} 13. Rc1 {[%clk 0:02:02]}  Bg4 {[%clk 0:01:49]} 14. Nb5 {[%clk 0:01:59]}  Nb4 {[%clk 0:01:41]} 15. a3 {[%clk 0:01:54]}  Nc6 {[%clk 0:01:35]} 16. b4 {[%clk 0:01:50]}  d5 {[%clk 0:01:35]} 17. c5 {[%clk 0:01:47]}  Nc4 {[%clk 0:01:35]} 18. Bxc4 {[%clk 0:01:43]}  dxc4 {[%clk 0:01:36]} 19. h3 {[%clk 0:01:43]}  Be6 {[%clk 0:00:57]} 20. Re1 {[%clk 0:01:43]}  Bd5 {[%clk 0:00:58]} 21. Ne5 {[%clk 0:01:41]}  Nxe5 {[%clk 0:00:54]} 22. dxe5 {[%clk 0:01:42]}  Qd7 {[%clk 0:00:48]} 23. Nc7 {[%clk 0:01:29]}  Rad8 {[%clk 0:00:34]} 24. Nxd5 {[%clk 0:01:27]}  Qxd5 {[%clk 0:00:35]} 25. Qxd5 {[%clk 0:01:28]}  Rxd5 {[%clk 0:00:35]} 26. Rxc4 {[%clk 0:01:29]}  Rd2 {[%clk 0:00:36]} 27. Bc1 {[%clk 0:01:29]}  Ra2 {[%clk 0:00:30]} 28. b5 {[%clk 0:01:28]}  Rc8 {[%clk 0:00:24]} 29. f4 {[%clk 0:01:25]}  e6 {[%clk 0:00:24]} 30. Rd1 {[%clk 0:01:17]}  Bf8 {[%clk 0:00:21]} 31. c6 {[%clk 0:01:17]}  bxc6 {[%clk 0:00:18]} 32. bxc6 {[%clk 0:01:18]}  Ra1 {[%clk 0:00:12]} 33. c7 {[%clk 0:01:14]}  Kg7 {[%clk 0:00:08]} 34. Rd8 {[%clk 0:01:13]}  Rxc7 {[%clk 0:00:08]} 35. Rxc7 {[%clk 0:01:13]}  Bxa3 {[%clk 0:00:09]} 36. Rdc8 {[%clk 0:01:12]}  Bb2 {[%clk 0:00:07]} 37. Kf2 {[%clk 0:01:09]}  a3 {[%clk 0:00:08]} 38. Rc2 {[%clk 0:01:01]}  Rb1 {[%clk 0:00:03]} 39. Bxb2 {[%clk 0:00:56]}  axb2 {[%clk 0:00:03]} 40. Rb8 {[%clk 0:00:56]} 1-0


[Site "https://www.chess.com"]

[Event "Titled Tuesday Blitz April 05 Late 2022"]
[White "Nazaretyan, Tigran"]
[Black "Morris-Suzuki, Sophie"]
[WhiteFideId "24162345"]
[BlackFideId "30922615"]
[WhiteElo "2615"]
[BlackElo "2516"]
[Result "1-0"]
[Round "06"]
[TimeControl "180+1"]
[Date "2022.04.06"]
[WhiteClock "0:00:55"]
[BlackClock "0:00:06"]

1. d4 {[%clk 0:03:00]}  d5 {[%clk 0:03:00]} 2. c4 {[%clk 0:03:00]}  e6 {[%clk 0:03:00]} 3. Nf3 {[%clk 0:03:00]}  Nf6 {[%clk 0:03:01]} 4. Nc3 {[%clk 0:03:00]}  Be7 {[%clk 0:03:01]} 5. Bf4 {[%clk 0:02:59]}  O-O {[%clk 0:03:01]} 6. e3 {[%clk 0:03:00]}  Nbd7 {[%clk 0:03:02]} 7. c5 {[%clk 0:03:00]}  b6 {[%clk 0:02:59]} 8. b4 {[%clk 0:02:59]}  c6 {[%clk 0:02:57]} 9. Bd3 {[%clk 0:02:55]}  a5 {[%clk 0:02:55]} 10. a3 {[%clk 0:02:47]}  Ba6 {[%clk 0:02:55]} 11. O-O {[%clk 0:02:46]}  Qc8 {[%clk 0:02:55]} 12. Qe2 {[%clk 0:02:43]}  Bxd3 {[%clk 0:02:54]} 13. Qxd3 {[%clk 0:02:43]}  Qa6 {[%clk 0:02:55]} 14. Qxa6 {[%clk 0:02:37]}  Rxa6 {[%clk 0:02:55]} 15. b5 {[%clk 0:02:37]}  cxb5 {[%clk 0:02:50]} 16. c6 {[%clk 0:02:36]}  b4 {[%clk 0:02:21]} 17. Nb5 {[%clk 0:02:34]}  Nb8 {[%clk 0:02:19]} 18. Rfc1 {[%clk 0:02:26]}  Rc8 {[%clk 0:02:05]} 19. axb4 {[%clk 0:02:12]}  Bxb4 {[%clk 0:01:30]} 20. Ne5 {[%clk 0:02:05]}  Ra8 {[%clk 0:01:14]} 21. Rc2 {[%clk 0:02:04]}  Ne4 {[%clk 0:00:55]} 22. f3 {[%clk 0:01:59]}  Nd6 {[%clk 0:00:53]} 23. Nxd6 {[%clk 0:01:44]}  Bxd6 {[%clk 0:00:53]} 24. Rac1 {[%clk 0:01:41]}  Na6 {[%clk 0:00:49]} 25. Nd7 {[%clk 0:01:09]}  Bxf4 {[%clk 0:00:39]} 26. exf4 {[%clk 0:01:10]}  Nb4 {[%clk 0:00:39]} 27. Nxb6 {[%clk 0:01:05]}  Nxc2 {[%clk 0:00:39]} 28. Rxc2 {[%clk 0:01:05]}  a4 {[%clk 0:00:37]} 29. c7 {[%clk 0:01:02]}  a3 {[%clk 0:00:14]} 30. Nxa8 {[%clk 0:01:02]}  a2 {[%clk 0:00:15]} 31. Rxa2 {[%clk 0:01:01]}  Kf8 {[%clk 0:00:13]} 32. Ra7 {[%clk 0:01:00]}  Ke7 {[%clk 0:00:10]} 33. Nb6 {[%clk 0:01:00]}  Rxc7 {[%clk 0:00:09]} 34. Rxc7+ {[%clk 0:00:59]}  Kf6 {[%clk 0:00:10]} 35. g4 {[%clk 0:00:58]}  Kg6 {[%clk 0:00:09]} 36. h4 {[%clk 0:00:56]}  h5 {[%clk 0:00:09]} 37. Nd7 {[%clk 0:00:56]}  f6 {[%clk 0:00:07]} 38. Nf8+ {[%clk 0:00:54]}  Kh6 {[%clk 0:00:07]} 39. g5+ {[%clk 0:00:55]}  fxg5 {[%clk 0:00:06]} 40. fxg5# {[%clk 0:00:55]} 1-0


[Site "https://www.chess.com"]

[Event "Titled Tuesday Blitz April 05 Late 2022"]
[White "Pakleza, Zbigniew"]
[Black "Vusatiuk, Vladimir"]
[WhiteFideId "1119290"]
[BlackFideId "14118610"]
[WhiteElo "2467"]
[BlackElo "2157"]
[Result "1-0"]
[Round "06"]
[TimeControl "180+1"]
[Date "2022.04.05"]
[WhiteClock "0:00:07"]
[BlackClock "0:00:02"]

1. d4 {[%clk 0:03:00]}  d5 {[%clk 0:02:56]} 2. Bf4 {[%clk 0:03:00]}  Nf6 {[%clk 0:02:52]} 3. e3 {[%clk 0:02:59]}  e6 {[%clk 0:02:52]} 4. Nf3 {[%clk 0:02:58]}  Bd6 {[%clk 0:02:52]} 5. Bg3 {[%clk 0:02:58]}  O-O {[%clk 0:02:40]} 6. Nbd2 {[%clk 0:02:58]}  b6 {[%clk 0:02:40]} 7. Ne5 {[%clk 0:02:57]}  c5 {[%clk 0:02:37]} 8. c3 {[%clk 0:02:57]}  Qc7 {[%clk 0:02:35]} 9. f4 {[%clk 0:02:53]}  Ba6 {[%clk 0:02:30]} 10. Bxa6 {[%clk 0:02:53]}  Nxa6 {[%clk 0:02:31]} 11. Qf3 {[%clk 0:02:50]}  b5 {[%clk 0:02:13]} 12. O-O {[%clk 0:02:48]}  Rab8 {[%clk 0:02:00]} 13. a3 {[%clk 0:02:41]}  Rb7 {[%clk 0:01:52]} 14. Bh4 {[%clk 0:02:36]}  Nd7 {[%clk 0:01:45]} 15. Rfc1 {[%clk 0:02:16]}  Nab8 {[%clk 0:01:26]} 16. b4 {[%clk 0:02:10]}  c4 {[%clk 0:01:17]} 17. a4 {[%clk 0:02:10]}  a5 {[%clk 0:01:13]} 18. bxa5 {[%clk 0:01:59]}  b4 {[%clk 0:01:11]} 19. cxb4 {[%clk 0:01:31]}  Bxb4 {[%clk 0:01:10]} 20. Ndxc4 {[%clk 0:00:54]}  dxc4 {[%clk 0:01:02]} 21. Nxc4 {[%clk 0:00:54]}  Ra7 {[%clk 0:00:56]} 22. Rab1 {[%clk 0:00:45]}  Na6 {[%clk 0:00:39]} 23. Nb6 {[%clk 0:00:12]}  Qd6 {[%clk 0:00:34]} 24. Rc6 {[%clk 0:00:10]}  Qb8 {[%clk 0:00:24]} 25. Nxd7 {[%clk 0:00:09]}  Rxd7 {[%clk 0:00:19]} 26. Rxa6 {[%clk 0:00:09]}  Rb7 {[%clk 0:00:18]} 27. Rb6 {[%clk 0:00:10]}  Rxb6 {[%clk 0:00:16]} 28. axb6 {[%clk 0:00:11]}  Qxb6 {[%clk 0:00:16]} 29. Be7 {[%clk 0:00:11]}  Rc8 {[%clk 0:00:05]} 30. Bxb4 {[%clk 0:00:12]}  Rc2 {[%clk 0:00:04]} 31. a5 {[%clk 0:00:10]}  Qa6 {[%clk 0:00:04]} 32. Qf1 {[%clk 0:00:09]}  Qa8 {[%clk 0:00:03]} 33. a6 {[%clk 0:00:07]}  h6 {[%clk 0:00:02]} 34. Bc5 {[%clk 0:00:07]}  Kh7 {[%clk 0:00:02]} 35. a7 {[%clk 0:00:07]}  Qe4 {[%clk 0:00:02]} 36. Ra1 {[%clk 0:00:07]} 1-0


[Site "https://www.chess.com"]